bitfinex-derivatives/quotes_BTCF0:USTF0_20250309
["timestamp","ask_amount","ask_price","bid_price","bid_amount"]
[1741559225347,0.1225017,81638.0,81637.0,0.16574399]
[1741559225552,0.4812,81638.0,81634.0,0.01762099]
[1741559225748,0.1225228,81624.0,81620.0,0.3608]
[1741559225949,0.1825,81623.0,81620.0,0.37838317]
[1741559226151,0.1925,81623.0,81620.0,0.37838317]
[1741559226354,0.00749482,81622.0,81620.0,0.01758317]
[1741559226545,0.1225347,81616.0,81615.0,0.22505439]
[1741559226746,0.2429347,81616.0,81615.0,0.00937439]
[1741559226947,0.25042952,81616.0,81613.0,0.00018366]
[1741559227243,0.4833378,81614.0,81613.0,0.00018366]
[1741559227557,0.52083262,81614.0,81613.0,0.00018366]
[1741559228048,0.90553262,81614.0,81613.0,0.00018366]
[1741559228245,0.1225393,81613.0,81612.0,0.00183787]
[1741559228553,0.1225393,81613.0,81605.0,0.21884377]
[1741559228554,0.1225498,81606.0,81605.0,0.15786593]
[1741559228749,0.6237498,81606.0,81605.0,0.15786593]
[1741559229542,0.82704462,81606.0,81605.0,0.15786593]
[1741559230146,0.82704462,81606.0,81597.0,0.36441726]
[1741559230147,0.70449482,81606.0,81597.0,0.36441726]
[1741559230346,0.4833618,81598.0,81589.0,0.01791727]
[1741559230541,0.4833738,81590.0,81585.0,0.00183871]
[1741559230754,0.4774,81589.0,81585.0,0.00183871]
[1741559230955,0.4974,81589.0,81585.0,0.01956132]
[1741559231144,0.00749482,81588.0,81586.0,0.1902]
[1741559231458,0.02749482,81588.0,81586.0,0.12922216]
[1741559231648,0.3811,81587.0,81585.0,0.01956132]
[1741559231952,0.1225798,81586.0,81585.0,0.01956132]
[1741559232152,0.43418108,81586.0,81585.0,0.01956132]
[1741559232754,0.55676088,81586.0,81585.0,0.02876991]
[1741559232952,0.55676088,81586.0,81585.0,0.01956132]
[1741559234251,0.75044715,81586.0,81585.0,0.01956132]
[1741559234555,0.55994715,81586.0,81570.0,0.39740081]
[1741559234751,0.1883,81585.0,81571.0,0.1842]
[1741559234956,0.122583,81584.0,81571.0,0.1842]
[1741559235153,0.1225915,81579.0,81571.0,0.20189197]
[1741559235352,0.02,81579.0,81571.0,0.20189197]
[1741559235557,0.01308108,81578.0,81577.0,0.3608]
[1741559235855,0.0904,81604.0,81585.0,0.1225813]
[1741559236049,0.16753597,81597.0,81591.0,0.3608]
[1741559236248,0.19134807,81605.0,81600.0,0.1225584]
[1741559236455,0.0904,81627.0,81604.0,0.3608]
[1741559236659,0.3608,81620.0,81604.0,0.33653423]
[1741559236955,0.01,81620.0,81610.0,0.23327672]
[1741559237163,0.0904,81645.0,81619.0,0.3608]
[1741559237347,0.331,81645.0,81620.0,0.50667672]
[1741559237552,0.1225168,81628.0,81620.0,0.44569888]
[1741559237754,0.4833272,81621.0,81620.0,0.11724521]
[1741559237955,0.1325272,81621.0,81620.0,0.02684521]
[1741559238158,0.1225408,81612.0,81611.0,0.00935319]
[1741559238360,0.3808,81612.0,81595.0,0.0904]
[1741559238553,0.1225798,81586.0,81585.0,0.00076]
[1741559238864,0.1225903,81579.0,81578.0,0.21576]
[1741559239068,0.1104,81579.0,81578.0,0.009298]
[1741559239254,0.1104,81579.0,81577.0,0.01778952]
[1741559239558,0.1104,81579.0,81577.0,0.00018378]
[1741559239559,0.8653918,81578.0,81577.0,0.00018378]
[1741559239752,0.7928,81578.0,81555.0,0.3608]
[1741559239952,0.7928,81578.0,81552.0,0.1913]
[1741559239953,0.7928,81578.0,81564.0,0.3608]
[1741559240261,0.7928,81578.0,81565.0,0.1835]
[1741559240454,0.7928,81578.0,81565.0,0.2739]
[1741559240455,0.432,81578.0,81565.0,0.2739]
[1741559240651,0.1225962,81576.0,81565.0,0.1835]
[1741559240855,0.122605,81570.0,81565.0,0.1835]
[1741559241051,0.1822,81569.0,81565.0,0.1835]
[1741559241257,0.2022,81569.0,81565.0,0.1835]
[1741559241853,0.3608,81568.0,81565.0,0.1835]
[1741559242052,0.3908,81568.0,81565.0,0.1835]
[1741559242259,0.3684,81567.0,81565.0,0.1835]
[1741559242455,0.02,81567.0,81565.0,0.2739]
[1741559242756,0.0905839,81580.0,81565.0,0.2739]
[1741559242960,0.0905839,81580.0,81565.0,0.1835]
[1741559242961,0.0612975,81576.0,81565.0,0.1835]
[1741559243150,0.3608,81572.0,81565.0,0.1835]
[1741559243458,0.1822,81571.0,81565.0,0.1835]
[1741559243659,0.1226079,81568.0,81565.0,0.12252216]
[1741559243863,0.3811,81567.0,81565.0,0.12252216]
[1741559244053,0.1226129,81564.0,81563.0,0.0001839]
[1741559244254,0.01,81564.0,81563.0,0.0001839]
[1741559244852,0.1326129,81564.0,81563.0,0.0001839]
[1741559245056,0.4934129,81564.0,81563.0,0.0001839]
[1741559246155,0.7316,81564.0,81563.0,0.0001839]
[1741559246360,0.74040584,81564.0,81550.0,0.41195095]
[1741559246559,0.3578,81563.0,81556.0,0.11262216]
[1741559246752,0.3978,81563.0,81557.0,0.1734]
[1741559246958,0.3978,81563.0,81560.0,0.0613094]
[1741559247155,0.04,81563.0,81562.0,0.1226159]
[1741559247355,0.3608,81564.0,81563.0,0.1226144]
[1741559247759,0.36624401,81564.0,81563.0,0.1226144]
[1741559247956,0.36624401,81564.0,81561.0,0.234708]
[1741559248156,0.36624401,81564.0,81561.0,0.1734]
[1741559248460,0.3608,81564.0,81563.0,0.1226144]
[1741559248856,0.3608,81564.0,81561.0,0.03838136]
[1741559249255,0.1847,81563.0,81561.0,0.03838136]
[1741559249463,0.3578,81563.0,81561.0,0.03838136]
[1741559249662,0.3608,81564.0,81563.0,0.1226144]
[1741559250060,0.3608,81564.0,81550.0,0.01815792]
[1741559250061,0.3708,81564.0,81550.0,0.01815792]
[1741559250263,0.3608,81555.0,81550.0,0.01815792]
[1741559250568,0.3708,81555.0,81550.0,0.20125792]
[1741559251065,0.01,81555.0,81550.0,0.20125792]
[1741559251370,0.02412783,81555.0,81550.0,0.29165792]
[1741559251569,0.51755423,81555.0,81550.0,0.01815792]
[1741559252270,0.39492783,81555.0,81538.0,0.00183941]
[1741559252470,0.1226505,81539.0,81538.0,0.01115723]
[1741559252664,0.1104,81539.0,81532.0,0.12396157]
[1741559252864,0.3608,81537.0,81533.0,0.1891]
[1741559253064,0.122658,81534.0,81533.0,0.1891]
[1741559253260,0.142658,81534.0,81533.0,0.1891]
[1741559253858,0.39492783,81534.0,81525.0,0.00012266]
[1741559254064,0.1226795,81520.0,81513.0,0.1891]
[1741559254264,0.3601,81519.0,81513.0,0.1891]
[1741559254473,0.3601,81519.0,81513.0,0.01795277]
[1741559254474,0.1226881,81514.0,81513.0,0.01795277]
[1741559254773,0.01,81514.0,81505.0,0.21584]
[1741559254960,0.3601,81513.0,81511.0,0.37887359]
[1741559255163,0.49761893,81512.0,81511.0,0.01807359]
[1741559255370,0.87961893,81512.0,81505.0,0.21584]
[1741559255558,0.75692783,81512.0,81505.0,0.21584]
[1741559255763,0.01412783,81511.0,81502.0,0.14572331]
[1741559255964,0.02412783,81511.0,81503.0,0.1914]
[1741559256165,0.1888,81510.0,81503.0,0.20923202]
[1741559256465,0.1988,81510.0,81503.0,0.01783202]
[1741559256667,0.1988,81510.0,81500.0,0.1]
[1741559256668,0.3608,81504.0,81500.0,0.1]
[1741559256869,0.3633,81503.0,81500.0,0.1]
[1741559257069,0.3633,81503.0,81470.0,0.41195095]
[1741559257070,0.3608,81501.0,81483.0,0.00901511]
[1741559257380,0.4221608,81492.0,81462.0,0.3608]
[1741559257584,0.0904,81491.0,81462.0,0.36977644]
[1741559257786,0.3608,81482.0,81469.0,0.3608]
[1741559257980,0.3608,81474.0,81462.0,0.39248543]
[1741559258170,0.1227579,81468.0,81462.0,0.39248543]
[1741559258376,0.45564,81467.0,81462.0,0.39248543]
[1741559258772,0.01412783,81466.0,81462.0,0.03168543]
[1741559258977,0.03412783,81466.0,81457.0,0.3608]
[1741559259279,0.20482783,81465.0,81458.0,0.1862]
[1741559259584,0.20482783,81465.0,81451.0,0.00924711]
[1741559259585,0.3608,81462.0,81451.0,0.00924711]
[1741559259781,0.1907,81461.0,81445.0,0.1852]
[1741559259985,0.09044,81460.0,81445.0,0.1852]
[1741559260177,0.11044,81460.0,81447.0,0.3608]
[1741559260379,0.3608,81453.0,81445.0,0.02231415]
[1741559260584,0.45854,81452.0,81443.0,0.01851631]
[1741559260778,0.3781,81452.0,81444.0,0.09044]
[1741559260975,0.21452121,81461.0,81460.0,0.1227694]
[1741559261181,0.10138236,81461.0,81460.0,0.09044]
[1741559261488,0.05841816,81461.0,81460.0,0.09044]
[1741559261780,0.03415647,81465.0,81460.0,0.52530616]
[1741559261983,0.1744,81482.0,81464.0,0.3608]
[1741559262180,0.1227425,81478.0,81461.0,0.09044]
[1741559262386,0.3495,81477.0,81461.0,0.09044]
[1741559262590,0.3608,81472.0,81460.0,0.31392216]
[1741559262785,0.3495,81471.0,81460.0,0.1852]
[1741559262985,0.3495,81471.0,81459.0,0.216]
[1741559262986,0.14271288,81461.0,81459.0,0.216]
[1741559263192,0.3495,81460.0,81459.0,0.216]
[1741559264690,0.0765478,81461.0,81460.0,0.1227694]
[1741559264892,0.04796204,81469.0,81468.0,0.1227574]
[1741559265087,0.04081586,81469.0,81468.0,0.5740374]
[1741559265280,0.02624674,81469.0,81468.0,0.45128]
[1741559265475,0.1566626,81473.0,81468.0,0.45128]
[1741559265678,0.1566626,81473.0,81469.0,0.3782]
[1741559266487,0.25088665,81472.0,81469.0,0.3782]
[1741559266692,0.00087722,81501.0,81471.0,0.26247209]
[1741559266880,0.3608,81491.0,81471.0,0.48017209]
[1741559267083,0.1758,81490.0,81472.0,0.3608]
[1741559267283,0.1958,81490.0,81477.0,0.1227426]
[1741559267583,0.1958,81490.0,81478.0,0.67006]
[1741559267984,0.1958,81490.0,81479.0,0.1227401]
[1741559268180,0.3608,81483.0,81478.0,0.60984216]
[1741559268387,0.1747,81482.0,81478.0,0.60908216]
[1741559268894,0.1735,81481.0,81478.0,0.60908216]
[1741559269090,0.3608,81491.0,81487.0,0.1227286]
[1741559269291,0.3708,81491.0,81487.0,0.09048]
[1741559269499,0.3482,81490.0,81487.0,0.09048]
[1741559270289,0.3482,81490.0,81487.0,0.09970101]
[1741559270491,0.3482,81490.0,81487.0,0.1218359]
[1741559270888,0.3482,81490.0,81487.0,0.06085806]
[1741559271091,0.3482,81490.0,81488.0,0.1874]
[1741559271388,0.00857144,81489.0,81480.0,0.29199774]
[1741559271594,0.00857144,81489.0,81481.0,0.09048]
[1741559271789,0.36937144,81488.0,81481.0,0.09048]
[1741559271990,0.36937144,81488.0,81481.0,0.11325713]
[1741559272389,0.00857144,81487.0,81482.0,0.0658]
[1741559272792,0.3608,81486.0,81482.0,0.0658]
[1741559272992,0.37472307,81486.0,81482.0,0.0658]
[1741559273193,0.01392307,81486.0,81485.0,0.1227317]
[1741559273390,0.01392307,81486.0,81482.0,0.4266]
[1741559273700,0.01392307,81485.0,81482.0,0.0658]
[1741559273900,0.1859,81484.0,81482.0,0.00482216]
[1741559274199,0.1859,81484.0,81483.0,0.3608]
[1741559274588,0.1859,81484.0,81483.0,0.4835348]
[1741559274794,0.3608,81508.0,81483.0,0.4079]
[1741559275000,0.16467322,81507.0,81501.0,0.1227062]
[1741559275187,0.17467322,81507.0,81501.0,0.09048]
[1741559275391,0.1227007,81506.0,81499.0,0.04874524]
[1741559275587,0.01,81506.0,81499.0,0.04874524]
[1741559275787,0.4835092,81500.0,81499.0,0.04874524]
[1741559275991,0.3808,81500.0,81494.0,0.00018414]
[1741559276187,0.1227112,81499.0,81494.0,0.00018414]
[1741559276394,0.1327112,81499.0,81494.0,0.00018414]
[1741559276701,0.3608,81497.0,81494.0,0.00018414]
[1741559276902,0.3708,81497.0,81494.0,0.00018414]
[1741559277097,0.01396205,81498.0,81496.0,0.3608]
[1741559277303,0.3608,81505.0,81489.0,0.3904863]
[1741559277602,0.3608,81505.0,81490.0,0.09044]
[1741559277603,0.3608,81496.0,81490.0,0.09044]
[1741559277798,0.3608,81496.0,81489.0,0.09044]
[1741559277799,0.3708,81496.0,81489.0,0.09044]
[1741559278003,0.01383853,81504.0,81495.0,0.1227167]
[1741559278204,0.01383853,81504.0,81485.0,0.21604]
[1741559278205,0.1773,81503.0,81496.0,0.09044]
[1741559278393,0.3608,81497.0,81496.0,0.09044]
[1741559278910,0.01383853,81502.0,81498.0,0.1227108]
[1741559279101,0.00532251,81497.0,81496.0,0.2745127]
[1741559279602,0.00532251,81497.0,81496.0,0.2131552]
[1741559279998,0.15605004,81501.0,81500.0,0.1227092]
[1741559280199,0.15605004,81501.0,81496.0,0.02946216]
[1741559280409,0.00855262,81500.0,81499.0,0.1227104]
[1741559280702,0.00855262,81500.0,81499.0,0.4835104]
[1741559280904,0.00855262,81500.0,81499.0,0.1227104]
[1741559281112,0.00855262,81500.0,81493.0,0.0613597]
[1741559281113,0.37935262,81500.0,81484.0,0.00018414]
[1741559281409,0.37935262,81500.0,81499.0,0.1227107]
[1741559281608,0.0162254,81500.0,81497.0,0.0613562]
[1741559281812,0.00855262,81500.0,81499.0,0.1227107]
[1741559281997,0.0162248,81500.0,81499.0,0.2131507]
[1741559282196,0.0162248,81500.0,81499.0,0.09044]
[1741559282398,0.0162248,81500.0,81493.0,0.09044]
[1741559282601,0.37935262,81500.0,81493.0,0.09044]
[1741559283097,0.37935262,81500.0,81493.0,0.02946216]
[1741559283299,0.18225262,81499.0,81485.0,0.21604]
[1741559283496,0.3608,81488.0,81485.0,0.21604]
[1741559283911,0.18225262,81487.0,81485.0,0.21604]
[1741559284305,0.18225262,81487.0,81480.0,0.00938443]
[1741559284306,0.1227317,81485.0,81480.0,0.00938443]
[1741559284607,0.1227528,81471.0,81470.0,0.0091698]
[1741559284807,0.37847528,81471.0,81455.0,0.02262782]
[1741559285003,0.18137528,81470.0,81452.0,0.21604]
[1741559285310,0.0239035,81469.0,81454.0,0.0613887]
[1741559285501,0.1227679,81461.0,81453.0,0.00018414]
[1741559285704,0.18137528,81460.0,81453.0,0.00018414]
[1741559285904,0.4835785,81454.0,81453.0,0.00018414]
[1741559286203,0.378477,81454.0,81452.0,0.17800723]
[1741559286502,0.1769,81453.0,81436.0,0.21604]
[1741559286702,0.20312822,81453.0,81443.0,0.01835562]
[1741559286909,0.20312822,81453.0,81444.0,0.1227934]
[1741559287211,0.01622822,81452.0,81451.0,0.122783]
[1741559287606,0.1808,81460.0,81449.0,0.3608]
[1741559287814,0.1808,81460.0,81459.0,0.1227709]
[1741559288007,0.1808,81460.0,81459.0,0.4344909]
[1741559288206,0.1491,81460.0,81459.0,0.4749909]
[1741559288405,0.09564,81476.0,81459.0,0.35222]
[1741559288605,0.36148,81479.0,81462.0,0.1227663]
[1741559288910,0.36148,81479.0,81459.0,0.30744579]
[1741559288911,0.00018414,81469.0,81459.0,0.30744579]
[1741559289106,0.3608,81463.0,81459.0,0.24570795]
[1741559289306,0.3608,81463.0,81462.0,0.1227664]
[1741559289613,0.1227694,81460.0,81459.0,0.21608]
[1741559289803,0.1327694,81460.0,81455.0,0.2177]
[1741559290003,0.1227754,81457.0,81455.0,0.2177]
[1741559290204,0.54758,81462.0,81458.0,0.1227723]
[1741559290403,0.54758,81462.0,81456.0,0.0613877]
[1741559290404,0.3808,81462.0,81456.0,0.0613877]
[1741559290607,0.3808,81462.0,81455.0,0.2177]
[1741559290915,0.1748,81461.0,81455.0,0.2177]
[1741559291106,0.2461842,81461.0,81447.0,0.4131098]
[1741559291408,0.1748,81461.0,81460.0,0.1227694]
[1741559291608,0.1748,81461.0,81453.0,0.1227793]
[1741559291809,0.1748,81461.0,81456.0,0.1227744]
[1741559292013,0.1748,81461.0,81454.0,0.1227778]
[1741559292202,0.1748,81461.0,81450.0,0.1227843]
[1741559292407,0.28655936,81457.0,81447.0,0.4131098]
[1741559292606,0.1839,81456.0,81450.0,0.1227835]
[1741559293002,0.2832415,81457.0,81456.0,0.1227754]
[1741559293203,0.2832415,81457.0,81456.0,0.2208554]
[1741559293408,0.2832415,81457.0,81456.0,0.09808]
[1741559293711,0.2832415,81457.0,81456.0,0.09804]
[1741559293911,0.23452517,81459.0,81458.0,0.1227724]
[1741559294117,0.13549477,81459.0,81458.0,0.1227724]
[1741559294708,0.13549477,81459.0,81458.0,0.2727724]
[1741559294917,0.13549477,81459.0,81458.0,0.1227724]
[1741559295111,0.30939477,81459.0,81456.0,0.0988]
[1741559295313,0.30939477,81459.0,81458.0,0.3608]
[1741559295518,0.67019477,81459.0,81440.0,0.3608]
[1741559295710,0.67019477,81459.0,81447.0,0.09812]
[1741559295913,0.30939477,81459.0,81449.0,0.4131098]
[1741559296119,0.30939477,81459.0,81458.0,0.1227724]
[1741559296317,0.84209477,81459.0,81447.0,0.09812]
[1741559296513,0.98486617,81459.0,81447.0,0.09812]
[1741559296709,0.86209477,81459.0,81447.0,0.09812]
[1741559296913,0.86209477,81459.0,81449.0,0.4131098]
[1741559297109,0.33199213,81458.0,81450.0,0.0613922]
[1741559297512,0.3458,81457.0,81450.0,0.1877]
[1741559297818,0.3458,81457.0,81450.0,0.2490918]
[1741559298118,0.33199213,81458.0,81457.0,0.1227739]
[1741559298315,0.33199213,81458.0,81457.0,0.16023606]
[1741559298511,0.22333056,81458.0,81457.0,0.34843606]
[1741559298710,0.25232935,81463.0,81462.0,0.1227664]
[1741559298711,0.10746738,81463.0,81462.0,0.1227664]
[1741559299114,0.10746738,81463.0,81462.0,0.2727664]
[1741559299319,0.10746738,81463.0,81457.0,0.64828]
[1741559299512,0.10746738,81463.0,81459.0,0.1227696]
[1741559299711,0.10746738,81463.0,81460.0,0.1882]
[1741559299912,0.1828,81462.0,81461.0,0.09884]
[1741559300817,0.1828,81462.0,81461.0,0.11605751]
[1741559301216,0.1828,81462.0,81461.0,0.05507967]
[1741559302223,0.5536,81462.0,81461.0,0.01721751]
[1741559302522,0.5536,81462.0,81449.0,0.0986]
[1741559302818,0.1754,81461.0,81450.0,0.01726057]
[1741559303117,0.1227815,81452.0,81451.0,0.01726057]
[1741559303317,0.01,81452.0,81445.0,0.21608]
[1741559303513,0.1227884,81448.0,81446.0,0.01738976]
[1741559303709,0.1227884,81448.0,81445.0,0.21608]
[1741559303710,0.1227905,81446.0,81445.0,0.21608]
[1741559303912,0.1427905,81446.0,81445.0,0.21608]
[1741559304116,0.5057905,81446.0,81445.0,0.21608]
[1741559304313,0.5057905,81446.0,81445.0,0.15510216]
[1741559305916,0.1227935,81444.0,81443.0,0.00923973]
[1741559306115,0.1427935,81444.0,81443.0,0.00923973]
[1741559306824,0.1427935,81444.0,81443.0,0.03203151]
[1741559307319,0.02,81444.0,81431.0,0.00922932]
[1741559307523,0.1228,81440.0,81430.0,0.21616]
[1741559307728,0.3608,81431.0,81420.0,0.00076]
[1741559307931,0.0614127,81423.0,81414.0,0.21616]
[1741559308121,0.1877,81422.0,81416.0,0.3608]
[1741559308430,0.3772,81422.0,81416.0,0.3608]
[1741559308722,0.3772,81422.0,81419.0,0.12283]
[1741559308926,0.3772,81422.0,81420.0,0.3736]
[1741559309125,0.3672,81422.0,81421.0,0.1228282]
[1741559309424,0.3672,81422.0,81420.0,0.1854]
[1741559309616,0.3672,81422.0,81416.0,0.38284018]
[1741559309925,0.1228342,81417.0,81416.0,0.02204018]
[1741559310130,0.3608,81418.0,81415.0,0.1842541]
[1741559310320,0.1706,81429.0,81419.0,0.0614149]
[1741559310524,0.1806,81429.0,81428.0,0.3608]
[1741559310826,0.2179,81439.0,81428.0,0.3608]
[1741559311130,0.18013045,81433.0,81417.0,0.3608]
[1741559311323,0.3608,81430.0,81417.0,0.09896]
[1741559311519,0.1228245,81424.0,81418.0,0.3608]
[1741559311729,0.3808,81430.0,81418.0,0.3608]
[1741559311730,0.3608,81430.0,81418.0,0.3608]
[1741559311925,0.02,81430.0,81429.0,0.3608]
[1741559312131,0.00018414,81432.0,81431.0,0.1228131]
[1741559312627,0.17078414,81432.0,81431.0,0.1228131]
[1741559312821,0.17078414,81432.0,81431.0,0.2217331]
[1741559313227,0.17078414,81432.0,81431.0,0.09892]
[1741559313425,0.34828414,81432.0,81422.0,0.0988]
[1741559313624,0.1228244,81424.0,81415.0,0.0988]
[1741559313929,0.0614133,81422.0,81415.0,0.0988]
[1741559314236,0.3543,81421.0,81415.0,0.0988]
[1741559314431,0.3643,81421.0,81415.0,0.0988]
[1741559315425,0.3643,81421.0,81412.0,0.3608]
[1741559315829,0.3643,81421.0,81409.0,0.09872]
[1741559315830,0.122832,81419.0,81413.0,0.3608]
[1741559316027,0.3543,81418.0,81413.0,0.3608]
[1741559316230,0.1228342,81417.0,81407.0,0.10464]
[1741559316426,0.01,81417.0,81403.0,0.0090042]
[1741559316631,0.3608,81404.0,81399.0,0.02230346]
[1741559316827,0.2732,81403.0,81399.0,0.02230346]
[1741559317027,0.2932,81403.0,81399.0,0.02230346]
[1741559317228,0.1228599,81400.0,81399.0,0.02230346]
[1741559317425,0.1328599,81400.0,81399.0,0.02230346]
[1741559317734,0.01,81400.0,81384.0,0.3608]
[1741559318033,0.3608,81387.0,81384.0,0.02239381]
[1741559318231,0.27352,81386.0,81373.0,0.3608]
[1741559318434,0.1846,81386.0,81380.0,0.3608]
[1741559318623,0.1746,81386.0,81373.0,0.09904]
[1741559318827,0.3608,81382.0,81370.0,0.23464989]
[1741559319033,0.0614496,81374.0,81370.0,0.23464989]
[1741559319230,0.1738,81373.0,81370.0,0.23464989]
[1741559319535,0.28288,81373.0,81365.0,0.33154424]
[1741559319727,0.1838,81372.0,81365.0,0.33154424]
[1741559319923,0.1938,81372.0,81365.0,0.33154424]
[1741559320222,0.27292,81371.0,81365.0,0.02234186]
[1741559320420,0.1938,81372.0,81370.0,0.1229052]
[1741559320421,0.1838,81372.0,81370.0,0.1229052]
[1741559320627,0.1838,81372.0,81371.0,0.4083237]
[1741559321431,0.1838,81372.0,81371.0,0.28542]
[1741559321634,0.1838,81372.0,81371.0,0.2220237]
[1741559322043,0.1838,81372.0,81371.0,0.1229037]
[1741559322229,0.1838,81372.0,81366.0,0.4222552]
[1741559322230,0.1838,81372.0,81366.0,0.09992]
[1741559322428,0.00018426,81388.0,81371.0,0.3608]
[1741559322626,0.1885,81398.0,81387.0,0.3608]
[1741559322830,0.54093045,81417.0,81387.0,0.3608]
[1741559322831,0.00064,81417.0,81416.0,0.1228358]
[1741559323137,0.3608,81419.0,81408.0,0.10016]
[1741559323335,0.3708,81419.0,81408.0,0.10016]
[1741559323531,0.3608,81419.0,81409.0,0.1837]
[1741559323726,0.3608,81419.0,81408.0,0.10016]
[1741559324038,0.3608,81419.0,81407.0,0.21628]
[1741559324039,0.3608,81411.0,81407.0,0.21628]
[1741559324234,0.3708,81411.0,81407.0,0.21628]
[1741559324741,0.3608,81419.0,81407.0,0.31656]
[1741559325030,0.122841,81413.0,81407.0,0.31656]
[1741559325238,0.1228478,81408.0,81407.0,0.31656]
[1741559325434,0.01,81408.0,81406.0,0.00917766]
[1741559325634,0.32241706,81410.0,81405.0,0.3608]
[1741559325833,0.28800424,81425.0,81421.0,0.1228282]
[1741559326025,0.3645,81424.0,81421.0,0.4836282]
[1741559326229,0.1836,81424.0,81421.0,0.0614135]
[1741559326435,0.28800424,81425.0,81420.0,0.4836282]
[1741559326436,0.28800424,81425.0,81424.0,0.1228237]
[1741559326631,0.24497211,81425.0,81424.0,0.4836237]
[1741559326937,0.24497211,81425.0,81424.0,0.40062534]
[1741559327238,0.24497211,81425.0,81424.0,0.52344904]
[1741559327633,0.24497211,81425.0,81424.0,0.2979237]
[1741559328141,0.24497211,81425.0,81406.0,0.0614252]
[1741559328339,0.3608,81421.0,81415.0,0.10048]
[1741559328541,0.1757,81420.0,81415.0,0.10048]
[1741559328738,0.1757,81420.0,81417.0,0.15530216]
[1741559328939,0.1757,81420.0,81417.0,0.32790216]
[1741559329140,0.24497211,81425.0,81423.0,0.122825]
[1741559329339,0.1757,81424.0,81418.0,0.1802]
[1741559329533,0.1893,81423.0,81419.0,0.1006]
[1741559329730,0.1757,81424.0,81422.0,0.1228267]
[1741559329936,0.1757,81424.0,81423.0,0.1726]
[1741559330242,0.10731389,81428.0,81424.0,0.0614118]
[1741559330438,0.10731389,81428.0,81427.0,0.4836192]
[1741559330640,0.10731389,81428.0,81427.0,0.5842592]
[1741559331144,0.3608,81449.0,81427.0,0.5842592]
[1741559331145,0.3608,81449.0,81432.0,0.1228116]
[1741559331336,0.3499,81447.0,81432.0,0.1228116]
[1741559331735,0.3499,81447.0,81432.0,0.06183376]
[1741559331943,0.3608,81456.0,81440.0,0.1227996]
[1741559332249,0.3636,81462.0,81447.0,0.122789]
[1741559332436,0.2516342,81463.0,81447.0,0.122789]
[1741559332437,0.3636,81455.0,81450.0,0.41313851]
[1741559332741,0.3636,81455.0,81453.0,0.1227794]
[1741559332946,0.3636,81455.0,81454.0,0.1854]
[1741559333339,0.00018426,81462.0,81454.0,0.21330301]
[1741559333540,0.00490003,81461.0,81455.0,0.10064]
[1741559334048,0.3636,81460.0,81459.0,0.1227709]
[1741559334343,0.00490003,81461.0,81460.0,0.3071694]
[1741559334344,1e-08,81461.0,81460.0,0.3071694]
[1741559334643,0.00018426,81462.0,81461.0,0.06179006]
[1741559334844,0.20881727,81463.0,81462.0,0.1227664]
[1741559335042,0.32340815,81474.0,81473.0,0.1227498]
[1741559335243,0.32340815,81474.0,81473.0,0.10036]
[1741559335545,0.3726,81476.0,81470.0,0.28246]
[1741559335746,0.3726,81473.0,81470.0,0.10036]
[1741559336043,0.0613756,81472.0,81465.0,0.10050414]
[1741559336347,0.1327514,81472.0,81465.0,0.10050414]
[1741559336647,0.1227554,81470.0,81465.0,0.10050414]
[1741559336845,0.3726,81469.0,81465.0,0.10050414]
[1741559337841,0.3608,81466.0,81460.0,0.41313851]
[1741559338041,0.3546,81465.0,81460.0,0.22895182]
[1741559338248,0.4159812,81465.0,81460.0,0.22895182]
[1741559338435,0.1227657,81463.0,81460.0,0.22895182]
[1741559338640,0.1227657,81463.0,81459.0,0.21624]
[1741559338641,0.3546,81462.0,81459.0,0.21624]
[1741559339250,0.1227694,81460.0,81459.0,0.21624]
[1741559339551,0.01,81460.0,81459.0,0.21624]
[1741559339749,0.2325694,81460.0,81459.0,0.21624]
[1741559340048,0.12278,81453.0,81452.0,0.00018414]
[1741559340346,0.3708,81453.0,81452.0,0.12296564]
[1741559340551,0.3708,81453.0,81452.0,0.00018414]
[1741559340745,0.3708,81453.0,81445.0,0.21616]
[1741559340746,0.3708,81453.0,81445.0,0.19288331]
[1741559340942,0.3608,81446.0,81445.0,0.16462562]
[1741559341147,0.4935905,81446.0,81445.0,0.16462562]
[1741559341447,0.0613988,81442.0,81426.0,0.02866125]
[1741559341646,0.3608,81433.0,81420.0,0.00076]
[1741559341838,0.3608,81433.0,81374.0,0.39569496]
[1741559341839,0.0614212,81412.0,81390.0,0.41313851]
[1741559342041,0.3608,81403.0,81402.0,0.1228569]
[1741559342242,0.64486,81411.0,81400.0,0.41313851]
[1741559342243,0.64562,81411.0,81400.0,0.41313851]
[1741559342448,0.1851,81402.0,81400.0,0.41313851]
[1741559342645,0.00072,81409.0,81401.0,0.1925]
[1741559342851,0.1851,81408.0,81400.0,0.41313851]
[1741559343552,0.1851,81408.0,81405.0,0.1228512]
[1741559343749,0.1851,81408.0,81407.0,0.06187146]
[1741559344046,0.3608,81410.0,81399.0,0.31596]
[1741559344250,0.3608,81403.0,81399.0,0.21616]
[1741559344447,0.1789,81402.0,81396.0,0.14345396]
[1741559344952,0.4606,81413.0,81408.0,0.0614234]
[1741559345150,0.0998,81413.0,81400.0,0.41313851]
[1741559345343,0.0998,81413.0,81401.0,0.1766]
[1741559345550,0.0998,81413.0,81408.0,0.1228468]
[1741559345753,0.0998,81413.0,81409.0,0.1766]
[1741559346345,0.1789,81412.0,81409.0,0.1766]
[1741559346547,0.1789,81412.0,81390.0,0.00921235]
[1741559346749,0.3608,81398.0,81390.0,0.00921235]
[1741559346943,0.1776,81397.0,81394.0,0.1228676]
[1741559347151,0.1776,81397.0,81390.0,0.1228741]
[1741559347453,0.1776,81397.0,81391.0,0.1784]
[1741559347648,0.1776,81397.0,81391.0,0.27812]
[1741559347958,0.3608,81408.0,81406.0,0.1228508]
[1741559348253,0.3608,81408.0,81394.0,0.4222342]
[1741559348254,0.3608,81408.0,81400.0,0.09968]
[1741559348454,0.3608,81408.0,81391.0,0.2398364]
[1741559348455,0.3608,81401.0,81390.0,0.12861032]
[1741559348753,0.3608,81392.0,81381.0,0.10927971]
[1741559348950,0.1228765,81389.0,81381.0,0.29817971]
[1741559349141,0.4222362,81392.0,81381.0,0.00943971]
[1741559349142,0.1776,81388.0,81381.0,0.00943971]
[1741559349345,0.0614429,81383.0,81368.0,0.09984]